Workbook

Sheet 面试成绩汇总表
A1: 附件1
A2: 南方医科大学招聘会进入面试人员综合总成绩及进入签约体检人员名单
A3: 序号 | B3: 姓 名 | C3: 性别 | D3: 报考职位代码 | E3: 报考职位 | F3: 报考单位 | G3: 笔试成绩 | H3: 面试成绩 | I3: 综合总成绩 | J3: 是否进入签约体检
A4: 1 | B4: 吴国豪 | C4: 男 | D4: 01 | E4: 全科医学医师 | F4: 广州市花都区人民医院 | G4: 69.00 | H4: 90.20 | I4: =ROUND((G4*0.4+H4*0.6),2) -> 81.72 | J4: 是
A5: 2 | B5: 罗思华 | C5: 女 | D5: 01 | E5: 全科医学医师 | F5: 广州市花都区人民医院 | G5: 73.00 | H5: 86.80 | I5: 81.28 | J5: 否
A6: 3 | B6: 肖雪芹 | C6: 女 | D6: 01 | E6: 全科医学医师 | F6: 广州市花都区人民医院 | G6: 72.00 | H6: 87.00 | I6: 81.00 | J6: 否
A7: 4 | B7: 黄燕舒 | C7: 女 | D7: 01 | E7: 全科医学医师 | F7: 广州市花都区人民医院 | G7: 77.00 | H7: 81.80 | I7: 79.88 | J7: 否
A8: 5 | B8: 王红虹 | C8: 女 | D8: 01 | E8: 全科医学医师 | F8: 广州市花都区人民医院 | G8: 76.00 | H8: 缺考 | I8: =ROUND((G8*0.4+0*0.6),2) -> 30.40 | J8: 否
A9: 6 | B9: 杨春霞 | C9: 女 | D9: 02 | E9: 呼吸内科医师 | F9: 广州市花都区人民医院 | G9: 65.00 | H9: 92.00 | I9: =ROUND((G9*0.4+H9*0.6),2) -> 81.20 | J9: 是
A10: 7 | B10: 刘丽红 | C10: 女 | D10: 02 | E10: 呼吸内科医师 | F10: 广州市花都区人民医院 | G10: 73.00 | H10: 86.60 | I10: 81.16 | J10: 否
A11: 8 | B11: 梁洁莹 | C11: 女 | D11: 02 | E11: 呼吸内科医师 | F11: 广州市花都区人民医院 | G11: 71.00 | H11: 87.80 | I11: 81.08 | J11: 否
A12: 9 | B12: 李水秀 | C12: 女 | D12: 02 | E12: 呼吸内科医师 | F12: 广州市花都区人民医院 | G12: 63.00 | H12: 89.80 | I12: 79.08 | J12: 否
A13: 10 | B13: 沈文哲 | C13: 男 | D13: 02 | E13: 呼吸内科医师 | F13: 广州市花都区人民医院 | G13: 76.00 | H13: 73.60 | I13: 74.56 | J13: 否
A14: 11 | B14: 张琪琦 | C14: 女 | D14: 04 | E14: 消化内科医师 | F14: 广州市花都区人民医院 | G14: 69.00 | H14: 88.40 | I14: 80.64 | J14: 是
A15: 12 | B15: 林丽花 | C15: 女 | D15: 04 | E15: 消化内科医师 | F15: 广州市花都区人民医院 | G15: 69.00 | H15: 86.60 | I15: 79.56 | J15: 否
A16: 13 | B16: 林懋捷 | C16: 男 | D16: 04 | E16: 消化内科医师 | F16: 广州市花都区人民医院 | G16: 68.00 | H16: 87.00 | I16: 79.40 | J16: 否
A17: 14 | B17: 陈嘉佳 | C17: 女 | D17: 04 | E17: 消化内科医师 | F17: 广州市花都区人民医院 | G17: 67.00 | H17: 82.20 | I17: 76.12 | J17: 否
A18: 15 | B18: 巫燕琴 | C18: 女 | D18: 04 | E18: 消化内科医师 | F18: 广州市花都区人民医院 | G18: 71.00 | H18: 缺考 | I18: =ROUND((G18*0.4+0*0.6),2) -> 28.40 | J18: 否
A19: 16 | B19: 李子源 | C19: 男 | D19: 05 | E19: 感染科医师 | F19: 广州市花都区人民医院 | G19: 70.00 | H19: 89.00 | I19: =ROUND((G19*0.4+H19*0.6),2) -> 81.40 | J19: 是
A20: 17 | B20: 兰玉 | C20: 男 | D20: 05 | E20: 感染科医师 | F20: 广州市花都区人民医院 | G20: 66.00 | H20: 89.20 | I20: 79.92 | J20: 是
A21: 18 | B21: 叶洁 | C21: 女 | D21: 05 | E21: 感染科医师 | F21: 广州市花都区人民医院 | G21: 61.00 | H21: 86.40 | I21: 76.24 | J21: 否
A22: 19 | B22: 张琬笠 | C22: 女 | D22: 05 | E22: 感染科医师 | F22: 广州市花都区人民医院 | G22: 64.00 | H22: 缺考 | I22: =ROUND((G22*0.4+0*0.6),2) -> 25.60 | J22: 否
A23: 20 | B23: 陈新辉 | C23: 男 | D23: 05 | E23: 感染科医师 | F23: 广州市花都区人民医院 | G23: 62.00 | H23: 缺考 | I23: =ROUND((G23*0.4+0*0.6),2) -> 24.80 | J23: 否
A24: 21 | B24: 陈科 | C24: 男 | D24: 06 | E24: 胃肠外科医师 | F24: 广州市花都区人民医院 | G24: 71.00 | H24: 59.80 | I24: =ROUND((G24*0.4+H24*0.6),2) -> 64.28 | J24: 否
A25: 22 | B25: 廖宝健 | C25: 男 | D25: 06 | E25: 胃肠外科医师 | F25: 广州市花都区人民医院 | G25: 69.00 | H25: 59.80 | I25: 63.48 | J25: 否
A26: 23 | B26: 李鹏 | C26: 男 | D26: 06 | E26: 胃肠外科医师 | F26: 广州市花都区人民医院 | G26: 67.00 | H26: 59.60 | I26: 62.56 | J26: 否
A27: 24 | B27: 王志华 | C27: 男 | D27: 06 | E27: 胃肠外科医师 | F27: 广州市花都区人民医院 | G27: 64.00 | H27: 59.40 | I27: 61.24 | J27: 否
A28: 25 | B28: 冯源 | C28: 男 | D28: 06 | E28: 胃肠外科医师 | F28: 广州市花都区人民医院 | G28: 61.00 | H28: 缺考 | I28: =ROUND((G28*0.4+0*0.6),2) -> 24.40 | J28: 否
A29: 26 | B29: 范永茂 | C29: 男 | D29: 07 | E29: 甲状腺血管外科医师 | F29: 广州市花都区人民医院 | G29: 66.00 | H29: 77.00 | I29: =ROUND((G29*0.4+H29*0.6),2) -> 72.60 | J29: 是
A30: 27 | B30: 朱青青 | C30: 女 | D30: 07 | E30: 甲状腺血管外科医师 | F30: 广州市花都区人民医院 | G30: 62.00 | H30: 76.00 | I30: 70.40 | J30: 否
A31: 28 | B31: 文鑫 | C31: 男 | D31: 07 | E31: 甲状腺血管外科医师 | F31: 广州市花都区人民医院 | G31: 67.00 | H31: 72.00 | I31: 70.00 | J31: 否
A32: 29 | B32: 刘崇栋 | C32: 男 | D32: 07 | E32: 甲状腺血管外科医师 | F32: 广州市花都区人民医院 | G32: 63.00 | H32: 71.40 | I32: 68.04 | J32: 否
A33: 30 | B33: 冯丽颖 | C33: 女 | D33: 07 | E33: 甲状腺血管外科医师 | F33: 广州市花都区人民医院 | G33: 69.00 | H33: 缺考 | I33: =ROUND((G33*0.4+0*0.6),2) -> 27.60 | J33: 否
A34: 31 | B34: 王志林 | C34: 男 | D34: 10 | E34: 胸外科医师 | F34: 广州市花都区人民医院 | G34: 64.00 | H34: 91.20 | I34: =ROUND((G34*0.4+H34*0.6),2) -> 80.32 | J34: 是
A35: 32 | B35: 刘炎斌 | C35: 男 | D35: 10 | E35: 胸外科医师 | F35: 广州市花都区人民医院 | G35: 62.00 | H35: 89.20 | I35: 78.32 | J35: 否
A36: 33 | B36: 刘达 | C36: 男 | D36: 10 | E36: 胸外科医师 | F36: 广州市花都区人民医院 | G36: 61.00 | H36: 89.20 | I36: 77.92 | J36: 否
A37: 34 | B37: 江志力 | C37: 男 | D37: 10 | E37: 胸外科医师 | F37: 广州市花都区人民医院 | G37: 60.00 | H37: 88.40 | I37: 77.04 | J37: 否
A38: 35 | B38: 王志先 | C38: 男 | D38: 15 | E38: 耳鼻喉科医师 | F38: 广州市花都区人民医院 | G38: 60.00 | H38: 89.20 | I38: 77.52 | J38: 是
A39: 36 | B39: 洪淑怡 | C39: 女 | D39: 15 | E39: 耳鼻喉科医师 | F39: 广州市花都区人民医院 | G39: 60.00 | H39: 87.40 | I39: 76.44 | J39: 否
A40: 37 | B40: 张海霞 | C40: 女 | D40: 15 | E40: 耳鼻喉科医师 | F40: 广州市花都区人民医院 | G40: 64.00 | H40: 82.60 | I40: 75.16 | J40: 否
A41: 38 | B41: 汪东晨 | C41: 男 | D41: 15 | E41: 耳鼻喉科医师 | F41: 广州市花都区人民医院 | G41: 65.00 | H41: 缺考 | I41: =ROUND((G41*0.4+0*0.6),2) -> 26.00 | J41: 否
A42: 39 | B42: 谢泳华 | C42: 女 | D42: 16 | E42: 精神心理科医师 | F42: 广州市花都区人民医院 | G42: 60.00 | H42: 92.00 | I42: =ROUND((G42*0.4+H42*0.6),2) -> 79.20 | J42: 是
A43: 40 | B43: 古丽梅 | C43: 女 | D43: 16 | E43: 精神心理科医师 | F43: 广州市花都区人民医院 | G43: 63.00 | H43: 89.60 | I43: 78.96 | J43: 否
A44: 41 | B44: 袁慧谦 | C44: 女 | D44: 16 | E44: 精神心理科医师 | F44: 广州市花都区人民医院 | G44: 65.00 | H44: 82.80 | I44: 75.68 | J44: 否
A45: 42 | B45: 叶悠然 | C45: 女 | D45: 16 | E45: 精神心理科医师 | F45: 广州市花都区人民医院 | G45: 61.00 | H45: 缺考 | I45: =ROUND((G45*0.4+0*0.6),2) -> 24.40 | J45: 否
A46: 43 | B46: 林艳 | C46: 女 | D46: 18 | E46: 重症医学科医师 | F46: 广州市花都区人民医院 | G46: 70.00 | H46: 86.40 | I46: =ROUND((G46*0.4+H46*0.6),2) -> 79.84 | J46: 是
A47: 44 | B47: 任捷 | C47: 男 | D47: 18 | E47: 重症医学科医师 | F47: 广州市花都区人民医院 | G47: 70.00 | H47: 85.80 | I47: =ROUND((G47*0.4+H47*0.6),2) -> 79.48 | J47: 否
A48: 45 | B48: 潘梦盈 | C48: 女 | D48: 19 | E48: 急诊医学科医师 | F48: 广州市花都区人民医院 | G48: 60.00 | H48: 93.20 | I48: =ROUND((G48*0.4+H48*0.6),2) -> 79.92 | J48: 是
A49: 46 | B49: 徐健雄 | C49: 男 | D49: 20 | E49: 麻醉科医师 | F49: 广州市花都区人民医院 | G49: 60.00 | H49: 91.40 | I49: =ROUND((G49*0.4+H49*0.6),2) -> 78.84 | J49: 是
A50: 47 | B50: 刘芳 | C50: 女 | D50: 20 | E50: 麻醉科医生 | F50: 广州市花都区人民医院 | G50: 73.00 | H50: 82.60 | I50: 78.76 | J50: 否
A51: 48 | B51: 黎淑婷 | C51: 女 | D51: 20 | E51: 麻醉科医师 | F51: 广州市花都区人民医院 | G51: 61.00 | H51: 86.60 | I51: =ROUND((G51*0.4+H51*0.6),2) -> 76.36 | J51: 否
A52: 49 | B52: 靳浩东 | C52: 男 | D52: 21 | E52: 病理科诊断医师 | F52: 广州市花都区人民医院 | G52: 64.00 | H52: 91.60 | I52: =ROUND((G52*0.4+H52*0.6),2) -> 80.56 | J52: 是
A53: 50 | B53: 彭丽琳 | C53: 女 | D53: 21 | E53: 病理科诊断医师 | F53: 广州市花都区人民医院 | G53: 60.00 | H53: 89.00 | I53: 77.40 | J53: 否
A54: 51 | B54: 许坤明 | C54: 男 | D54: 21 | E54: 病理科诊断医师 | F54: 广州市花都区人民医院 | G54: 72.00 | H54: 79.80 | I54: 76.68 | J54: 否
A55: 52 | B55: 钟丽娟 | C55: 女 | D55: 21 | E55: 病理科诊断医师 | F55: 广州市花都区人民医院 | G55: 68.00 | H55: 82.00 | I55: 76.40 | J55: 否
A56: 53 | B56: 梁锦汉 | C56: 男 | D56: 22 | E56: 介入科医师 | F56: 广州市花都区人民医院 | G56: 66.00 | H56: 87.00 | I56: 78.60 | J56: 是
A57: 54 | B57: 王梦意 | C57: 女 | D57: 23 | E57: 医学影像科放射诊断医师 | F57: 广州市花都区人民医院 | G57: 66.00 | H57: 90.20 | I57: 80.52 | J57: 是
A58: 55 | B58: 黄晓妮 | C58: 女 | D58: 23 | E58: 医学影像科放射诊断医师 | F58: 广州市花都区人民医院 | G58: 70.00 | H58: 86.00 | I58: 79.60 | J58: 否
A59: 56 | B59: 陈虹霖 | C59: 女 | D59: 23 | E59: 医学影像科放射诊断医师 | F59: 广州市花都区人民医院 | G59: 72.00 | H59: 84.60 | I59: 79.56 | J59: 否
A60: 57 | B60: 吴迪朗 | C60: 男 | D60: 23 | E60: 医学影像科放射诊断医师 | F60: 广州市花都区人民医院 | G60: 69.00 | H60: 85.40 | I60: 78.84 | J60: 否
A61: 58 | B61: 薛婷 | C61: 女 | D61: 23 | E61: 医学影像科放射诊断医师 | F61: 广州市花都区人民医院 | G61: 66.00 | H61: 86.00 | I61: 78.00 | J61: 否
A62: 59 | B62: 杨俊 | C62: 男 | D62: 23 | E62: 医学影像科放射诊断医师 | F62: 广州市花都区人民医院 | G62: 68.00 | H62: 84.60 | I62: 77.96 | J62: 否
A63: 60 | B63: 陈俊兆 | C63: 男 | D63: 24 | E63: 超声影像科诊断医师 | F63: 广州市花都区人民医院 | G63: 63.00 | H63: 89.40 | I63: 78.84 | J63: 是
A64: 61 | B64: 孙玲玉 | C64: 女 | D64: 25 | E64: 药学部药师 | F64: 广州市花都区人民医院 | G64: 60.00 | H64: 59.80 | I64: 59.88 | J64: 否
A65: 62 | B65: 李刘任 | C65: 女 | D65: 25 | E65: 药学部药师 | F65: 广州市花都区人民医院 | G65: 60.00 | H65: 59.60 | I65: 59.76 | J65: 否
A66: 63 | B66: 宋银华 | C66: 女 | D66: 26 | E66: 临床护师 | F66: 广州市花都区人民医院 | G66: 60.00 | H66: 59.60 | I66: 59.76 | J66: 否
A67: 64 | B67: 张晓尉 | C67: 女 | D67: 27 | E67: 临床药物试验机构人员 | F67: 广州市花都区人民医院 | G67: 61.00 | H67: 92.00 | I67: 79.60 | J67: 是
A68: 65 | B68: 文琳 | C68: 女 | D68: 27 | E68: 临床药物试验机构人员 | F68: 广州市花都区人民医院 | G68: 75.00 | H68: 82.60 | I68: 79.56 | J68: 否
A69: 66 | B69: 徐思琦 | C69: 女 | D69: 27 | E69: 临床药物试验机构人员 | F69: 广州市花都区人民医院 | G69: 62.00 | H69: 91.20 | I69: 79.52 | J69: 否
A70: 67 | B70: 宁晓平 | C70: 女 | D70: 27 | E70: 临床药物试验机构人员 | F70: 广州市花都区人民医院 | G70: 60.00 | H70: 88.40 | I70: 77.04 | J70: 否
A71: 68 | B71: 李治颖 | C71: 女 | D71: 27 | E71: 临床药物试验机构人员 | F71: 广州市花都区人民医院 | G71: 63.00 | H71: 81.40 | I71: 74.04 | J71: 否
A72: 69 | B72: 杜根发 | C72: 男 | D72: 31 | E72: 中医骨伤科医师 | F72: 广州市中西医结合医院 | G72: 61.00 | H72: 85.20 | I72: 75.52 | J72: 是
A73: 70 | B73: 钟颖 | C73: 女 | D73: 33 | E73: 肿瘤科医师 | F73: 广州市中西医结合医院 | G73: 65.00 | H73: 84.80 | I73: 76.88 | J73: 是
A74: 71 | B74: 曾舒雯 | C74: 女 | D74: 33 | E74: 肿瘤科医师 | F74: 广州市中西医结合医院 | G74: 66.00 | H74: 77.00 | I74: 72.60 | J74: 否
A75: 72 | B75: 王丽娟 | C75: 女 | D75: 33 | E75: 肿瘤科医师 | F75: 广州市中西医结合医院 | G75: 67.00 | H75: 72.20 | I75: 70.12 | J75: 否
A76: 73 | B76: 方美金 | C76: 女 | D76: 36 | E76: 眼科医师 | F76: 广州市中西医结合医院 | G76: 63.00 | H76: 85.60 | I76: 76.56 | J76: 是
A77: 74 | B77: 唐露诗 | C77: 女 | D77: 36 | E77: 眼科医师 | F77: 广州市中西医结合医院 | G77: 74.00 | H77: 70.00 | I77: 71.60 | J77: 否
A78: 75 | B78: 刘祺 | C78: 女 | D78: 36 | E78: 眼科医师 | F78: 广州市中西医结合医院 | G78: 61.00 | H78: 78.20 | I78: 71.32 | J78: 否
A79: 76 | B79: 谢小琴 | C79: 女 | D79: 36 | E79: 眼科医师 | F79: 广州市中西医结合医院 | G79: 64.00 | H79: 75.80 | I79: 71.08 | J79: 否
A80: 77 | B80: 李嘉愔 | C80: 女 | D80: 36 | E80: 眼科医师 | F80: 广州市中西医结合医院 | G80: 66.00 | H80: 74.00 | I80: 70.80 | J80: 否
A81: 78 | B81: 张能 | C81: 男 | D81: 38 | E81: 心血管内科医师 | F81: 广州市中西医结合医院 | G81: 69.00 | H81: 84.80 | I81: 78.48 | J81: 是
A82: 79 | B82: 李志猛 | C82: 男 | D82: 38 | E82: 心血管内科医师 | F82: 广州市中西医结合医院 | G82: 62.00 | H82: 75.60 | I82: 70.16 | J82: 否
A83: 80 | B83: 李智龙 | C83: 男 | D83: 38 | E83: 心血管内科医师 | F83: 广州市中西医结合医院 | G83: 60.00 | H83: 76.40 | I83: 69.84 | J83: 否
A84: 81 | B84: 黄辉 | C84: 男 | D84: 38 | E84: 心血管内科医师 | F84: 广州市中西医结合医院 | G84: 66.00 | H84: 缺考 | I84: =ROUND((G84*0.4+0*0.6),2) -> 26.40 | J84: 否
A85: 82 | B85: 罗炜明 | C85: 男 | D85: 38 | E85: 心血管内科医师 | F85: 广州市中西医结合医院 | G85: 65.00 | H85: 缺考 | I85: =ROUND((G85*0.4+0*0.6),2) -> 26.00 | J85: 否
A86: 83 | B86: 梁乐诗 | C86: 女 | D86: 40 | E86: 消化内科医师 | F86: 广州市中西医结合医院 | G86: 63.00 | H86: 85.00 | I86: =ROUND((G86*0.4+H86*0.6),2) -> 76.20 | J86: 是
A87: 84 | B87: 欧阳晓佳 | C87: 女 | D87: 40 | E87: 消化内科医师 | F87: 广州市中西医结合医院 | G87: 63.00 | H87: 76.20 | I87: 70.92 | J87: 否
A88: 85 | B88: 张志娇 | C88: 女 | D88: 40 | E88: 消化内科医师 | F88: 广州市中西医结合医院 | G88: 61.00 | H88: 75.80 | I88: 69.88 | J88: 否
A89: 86 | B89: 李芷旋 | C89: 女 | D89: 41 | E89: 呼吸内科医师 | F89: 广州市中西医结合医院 | G89: 64.00 | H89: 83.00 | I89: 75.40 | J89: 是
A90: 87 | B90: 朱云飘 | C90: 男 | D90: 41 | E90: 呼吸内科医师 | F90: 广州市中西医结合医院 | G90: 65.00 | H90: 72.00 | I90: 69.20 | J90: 否
A91: 88 | B91: 尤海荣 | C91: 男 | D91: 41 | E91: 呼吸内科医师 | F91: 广州市中西医结合医院 | G91: 61.00 | H91: 71.80 | I91: 67.48 | J91: 否
A92: 89 | B92: 刘麒 | C92: 男 | D92: 43 | E92: 肛肠科医师 | F92: 广州市中西医结合医院 | G92: 67.00 | H92: 84.40 | I92: 77.44 | J92: 是
A93: 90 | B93: 吴喜 | C93: 女 | D93: 43 | E93: 肛肠科医师 | F93: 广州市中西医结合医院 | G93: 63.00 | H93: 76.80 | I93: 71.28 | J93: 否
A94: 91 | B94: 林佳钏 | C94: 男 | D94: 46 | E94: 超声医学科医师 | F94: 广州市中西医结合医院 | G94: 62.00 | H94: 缺考 | I94: =ROUND((G94*0.4+0*0.6),2) -> 24.80 | J94: 否
A95: 92 | B95: 龙佳珍 | C95: 女 | D95: 48 | E95: 口腔科医师 | F95: 广州市花都区妇幼保健院（胡忠医院） | G95: 65.50 | H95: 92.60 | I95: =ROUND((G95*0.4+H95*0.6),2) -> 81.76 | J95: 是
A96: 93 | B96: 张湛奇 | C96: 女 | D96: 48 | E96: 口腔科医师 | F96: 广州市花都区妇幼保健院（胡忠医院） | G96: 71.50 | H96: 83.00 | I96: 78.40 | J96: 否
A97: 94 | B97: 陈苑婷 | C97: 女 | D97: 48 | E97: 口腔科医师 | F97: 广州市花都区妇幼保健院（胡忠医院） | G97: 69.50 | H97: 81.60 | I97: 76.76 | J97: 否
A98: 95 | B98: 邱进 | C98: 男 | D98: 48 | E98: 口腔科医师 | F98: 广州市花都区妇幼保健院（胡忠医院） | G98: 65.00 | H98: 84.00 | I98: 76.40 | J98: 否
A99: 96 | B99: 莫家尧 | C99: 男 | D99: 48 | E99: 口腔科医师 | F99: 广州市花都区妇幼保健院（胡忠医院） | G99: 63.50 | H99: 81.80 | I99: 74.48 | J99: 否
A100: 97 | B100: 陈丽琴 | C100: 女 | D100: 49 | E100: 麻醉学医师 | F100: 广州市花都区妇幼保健院（胡忠医院） | G100: 62.00 | H100: 88.20 | I100: 77.72 | J100: 是
A101: 98 | B101: 姚若琳 | C101: 女 | D101: 50 | E101: 乳腺科医师 | F101: 广州市花都区妇幼保健院（胡忠医院） | G101: 64.00 | H101: 87.40 | I101: 78.04 | J101: 是
A102: 99 | B102: 涂怀宇 | C102: 男 | D102: 50 | E102: 乳腺科医师 | F102: 广州市花都区妇幼保健院（胡忠医院） | G102: 60.50 | H102: 81.80 | I102: 73.28 | J102: 否
A103: 100 | B103: 贾诗杰 | C103: 女 | D103: 50 | E103: 乳腺科医师 | F103: 广州市花都区妇幼保健院（胡忠医院） | G103: 70.00 | H103: 缺考 | I103: =ROUND((G103*0.4+0*0.6),2) -> 28.00 | J103: 否
A104: 101 | B104: 庄高建 | C104: 男 | D104: 50 | E104: 乳腺科医师 | F104: 广州市花都区妇幼保健院（胡忠医院） | G104: 61.00 | H104: 缺考 | I104: 24.40 | J104: 否
A105: 102 | B105: 陈杨 | C105: 男 | D105: 53 | E105: 耳鼻咽喉科医师 | F105: 广州市花都区妇幼保健院（胡忠医院） | G105: 67.00 | H105: 92.00 | I105: =ROUND((G105*0.4+H105*0.6),2) -> 82.00 | J105: 是
A106: 103 | B106: 李楚冰 | C106: 女 | D106: 53 | E106: 耳鼻咽喉科医师 | F106: 广州市花都区妇幼保健院（胡忠医院） | G106: 60.50 | H106: 79.20 | I106: 71.72 | J106: 否
A107: 104 | B107: 刘萌垚 | C107: 女 | D107: 55 | E107: 临床护士 | F107: 广州市花都区妇幼保健院（胡忠医院） | G107: 68.00 | H107: 缺考 | I107: 27.20 | J107: 否
A108: 105 | B108: 曹娟 | C108: 女 | D108: 55 | E108: 临床护士 | F108: 广州市花都区妇幼保健院（胡忠医院） | G108: 64.00 | H108: 缺考 | I108: 25.60 | J108: 否
A109: 106 | B109: 徐小彦 | C109: 女 | D109: 56 | E109: 神经外科医师 | F109: 广州市花都区第二人民医院 | G109: 72.50 | H109: 87.20 | I109: 81.32 | J109: 是
A110: 107 | B110: 何晟亮 | C110: 男 | D110: 56 | E110: 神经外科医师 | F110: 广州市花都区第二人民医院 | G110: 71.00 | H110: 81.20 | I110: 77.12 | J110: 否
A111: 108 | B111: 杨林波 | C111: 男 | D111: 56 | E111: 神经外科医师 | F111: 广州市花都区第二人民医院 | G111: 76.00 | H111: 缺考 | I111: =ROUND((G111*0.4+0*0.6),2) -> 30.40 | J111: 否
A112: 109 | B112: 邓奉飘 | C112: 男 | D112: 56 | E112: 神经外科医师 | F112: 广州市花都区第二人民医院 | G112: 67.50 | H112: 缺考 | I112: 27.00 | J112: 否
A113: 110 | B113: 何倩 | C113: 女 | D113: 56 | E113: 神经外科医师 | F113: 广州市花都区第二人民医院 | G113: 64.00 | H113: 缺考 | I113: 25.60 | J113: 否
A114: 111 | B114: 程贝贝 | C114: 女 | D114: 57 | E114: 妇产科医师 | F114: 广州市花都区第二人民医院 | G114: 64.50 | H114: 87.40 | I114: =ROUND((G114*0.4+H114*0.6),2) -> 78.24 | J114: 是
A115: 112 | B115: 阳璐 | C115: 女 | D115: 57 | E115: 妇产科医师 | F115: 广州市花都区第二人民医院 | G115: 62.00 | H115: 缺考 | I115: =ROUND((G115*0.4+0*0.6),2) -> 24.80 | J115: 否
A116: 113 | B116: 邓天华 | C116: 男 | D116: 58 | E116: 心血管内科医师 | F116: 广州市花都区第二人民医院 | G116: 74.00 | H116: 87.20 | I116: 81.92 | J116: 是
A117: 114 | B117: 杨奇峰 | C117: 男 | D117: 58 | E117: 心血管内科医师 | F117: 广州市花都区第二人民医院 | G117: 69.50 | H117: 80.60 | I117: 76.16 | J117: 否
A118: 115 | B118: 陈莹 | C118: 女 | D118: 58 | E118: 心血管内科医师 | F118: 广州市花都区第二人民医院 | G118: 69.00 | H118: 79.80 | I118: 75.48 | J118: 否
A119: 116 | B119: 王莹 | C119: 女 | D119: 58 | E119: 心血管内科医师 | F119: 广州市花都区第二人民医院 | G119: 64.00 | H119: 80.80 | I119: 74.08 | J119: 否
A120: 117 | B120: 黄家钱 | C120: 女 | D120: 63 | E120: 眼科医师 | F120: 广州市花都区第二人民医院 | G120: 60.50 | H120: 86.80 | I120: 76.28 | J120: 是
A121: 118 | B121: 肖琪 | C121: 女 | D121: 63 | E121: 眼科医师 | F121: 广州市花都区第二人民医院 | G121: 64.00 | H121: 79.00 | I121: 73.00 | J121: 否
A122: 119 | B122: 陈祉帆 | C122: 女 | D122: 63 | E122: 眼科医师 | F122: 广州市花都区第二人民医院 | G122: 63.00 | H122: 79.40 | I122: 72.84 | J122: 否
A123: 120 | B123: 何盈 | C123: 女 | D123: 63 | E123: 眼科医师 | F123: 广州市花都区第二人民医院 | G123: 65.00 | H123: 缺考 | I123: =ROUND((G123*0.4+0*0.6),2) -> 26.00 | J123: 否
A124: 121 | B124: 蔡雪培 | C124: 女 | D124: 65 | E124: 口腔科医师 | F124: 广州市花都区第二人民医院 | G124: 65.50 | H124: 86.20 | I124: =ROUND((G124*0.4+H124*0.6),2) -> 77.92 | J124: 是
A125: 122 | B125: 李小玲 | C125: 女 | D125: 65 | E125: 口腔科医师 | F125: 广州市花都区第二人民医院 | G125: 67.00 | H125: 缺考 | I125: =ROUND((G125*0.4+0*0.6),2) -> 26.80 | J125: 否
